bitfinex/quotes_ETHUSD_20251116
["timestamp","ask_amount","ask_price","bid_price","bid_amount"]
[1763315335205,0.4504,3062.1,3060.8,0.1137]
[1763315336046,0.30189071,3062.0,3060.8,0.1137]
[1763315336431,0.6488,3061.9,3060.7,0.1137]
[1763315336819,0.4504,3061.8,3060.7,0.1137]
[1763315337028,0.4504,3061.8,3060.5,0.1137]
[1763315337232,0.4504,3061.8,3060.6,0.870104]
[1763315339118,0.4504,3061.8,3060.7,0.4646]
[1763315339435,0.4504,3061.8,3060.8,0.405504]
[1763315340535,0.30255548,3061.7,3060.8,0.405504]
[1763315340837,0.30253878,3061.7,3060.6,0.405504]
[1763315341155,0.1984,3061.9,3060.6,0.405504]
[1763315341156,0.4504,3061.6,3060.6,0.405504]
[1763315341477,0.4504,3061.6,3060.6,0.870104]
[1763315342169,0.4504,3062.1,3060.8,0.405504]
[1763315342372,0.30287663,3062.0,3060.8,0.405504]
[1763315342529,0.30288986,3062.4,3061.0,0.405504]
[1763315342877,0.30288986,3062.6,3061.2,0.405504]
[1763315343073,0.4504,3062.9,3061.2,0.405504]
[1763315343272,0.30288986,3062.8,3061.2,0.405504]
[1763315343501,0.4504,3062.9,3060.5,0.1137]
[1763315343502,0.30288986,3062.7,3060.5,0.1137]
[1763315343682,0.75328986,3062.6,3060.7,0.405504]
[1763315343892,0.75328986,3062.6,3060.6,0.4646]
[1763315343893,1.43663066,3062.5,3060.6,0.4646]
[1763315344181,1.00080921,3062.4,3060.7,0.405504]
[1763315344330,0.30288986,3062.3,3060.9,0.405504]
[1763315344536,0.75328986,3062.2,3060.9,0.857304]
[1763315344835,0.30288986,3062.1,3060.9,0.857304]
[1763315345067,0.30288986,3062.1,3061.1,0.405504]
[1763315345270,0.30288986,3062.3,3061.1,0.405504]
[1763315345473,0.30288986,3062.2,3061.3,0.405504]
[1763315345641,0.05,3063.1,3061.3,0.405504]
[1763315345642,0.30288986,3062.3,3061.3,0.405504]
[1763315345975,0.6648,3063.0,3061.5,0.405504]
[1763315345976,0.76928986,3062.9,3061.5,0.405504]
[1763315346130,0.30288986,3062.8,3061.5,0.405504]
[1763315346337,0.30288986,3062.8,3061.7,0.405504]
[1763315346533,0.30288986,3063.4,3062.7,0.1425]
[1763315346786,0.30288986,3063.3,3061.7,0.405504]
[1763315347086,0.30288986,3063.2,3061.7,0.857304]
[1763315347338,0.30288986,3063.3,3063.1,0.6242]
[1763315347526,0.30288986,3063.6,3063.1,0.6242]
[1763315347832,0.002,3063.7,3063.2,0.4817]
[1763315348123,0.002,3063.7,3063.6,0.4817]
[1763315348338,0.002,3063.7,3063.6,0.887204]
[1763315348538,0.002,3063.7,3063.6,1.339004]
[1763315349028,0.002,3063.7,3063.6,0.887204]
[1763315349437,0.002,3063.7,3063.1,0.5943]
[1763315349588,0.002,3063.7,3063.1,0.1425]
[1763315350301,0.002,3063.7,3063.2,0.405504]
[1763315350527,0.4684,3063.7,3062.9,0.1425]
[1763315350934,0.303127,3063.6,3062.2,0.1425]
[1763315351304,0.303127,3063.6,3062.4,0.405504]
[1763315351821,0.4664,3063.5,3062.2,0.1425]
[1763315352135,0.303127,3063.4,3062.3,0.405504]
[1763315352642,0.769527,3063.4,3062.3,0.405504]
[1763315352843,0.303127,3063.3,3062.3,0.405504]
[1763315353556,0.303127,3063.6,3062.3,0.405504]
[1763315353763,0.303127,3063.5,3062.5,0.405504]
[1763315353939,0.303127,3063.4,3062.5,0.405504]
[1763315354145,0.303127,3063.3,3062.3,0.405504]
[1763315354460,0.303127,3063.4,3062.3,0.405504]
[1763315354634,0.4664,3063.6,3062.3,0.857304]
[1763315354635,0.303127,3063.5,3062.3,0.857304]
[1763315354835,0.303127,3063.4,3062.3,0.857304]
[1763315355033,0.002,3063.7,3062.2,0.1425]
[1763315355034,0.303127,3063.5,3062.5,0.405504]
[1763315355242,0.002,3063.7,3063.6,0.877504]
[1763315355629,0.002,3063.7,3063.6,1.346104]
[1763315355852,0.002,3063.7,3063.6,0.877504]
[1763315356052,0.002,3063.7,3063.6,1.346104]
[1763315357277,0.002,3064.0,3063.7,0.405504]
[1763315357453,0.002,3064.4,3064.1,0.405504]
[1763315357763,0.30301393,3065.7,3064.4,0.405504]
[1763315357968,0.77381393,3065.8,3064.4,0.405504]
[1763315358175,0.30301393,3065.7,3064.4,0.405504]
[1763315358463,0.77381393,3065.7,3064.4,0.405504]
[1763315358768,0.30301393,3065.6,3064.0,0.1222]
[1763315358972,0.77381393,3065.6,3064.0,0.1222]
[1763315359178,0.30301393,3065.5,3064.1,0.1222]
[1763315359481,0.4708,3065.5,3064.1,0.1222]
[1763315359629,0.4708,3065.5,3064.2,0.405504]
[1763315359968,0.30239239,3065.4,3064.2,0.405504]
[1763315360168,0.4708,3065.5,3064.2,0.405504]
[1763315360469,0.4708,3065.4,3064.2,0.405504]
[1763315360626,0.4708,3065.4,3064.2,0.874104]
[1763315361037,0.651,3065.9,3064.4,0.405504]
[1763315361260,0.30220379,3065.8,3064.4,0.405504]
[1763315361575,0.4708,3065.7,3064.2,0.405504]
[1763315361741,0.30192828,3065.6,3064.2,0.405504]
[1763315362144,0.4708,3065.5,3064.2,0.405504]
[1763315363233,0.4708,3065.5,3064.2,0.874104]
[1763315363645,0.4708,3065.5,3064.2,0.405504]
[1763315364855,0.4708,3065.5,3063.2,0.4686]
[1763315364856,0.6701,3064.3,3063.2,0.4686]
[1763315365055,0.6701,3064.3,3062.5,0.4686]
[1763315365056,0.3353,3064.2,3062.5,0.4686]
[1763315365234,0.8061,3064.2,3062.9,0.4686]
[1763315365434,0.3353,3064.2,3063.0,0.5908]
[1763315365743,0.4708,3064.1,3062.2,0.1425]
[1763315365942,0.30158184,3064.0,3062.2,0.1425]
[1763315366146,0.30158184,3064.0,3062.3,0.4686]
[1763315366477,0.4708,3064.0,3062.4,0.405504]
[1763315366773,0.4708,3064.0,3062.5,0.4686]
[1763315367875,0.4708,3064.0,3063.8,0.001]
[1763315368172,0.3017992,3063.9,3063.8,0.001]
[1763315368474,0.7916992,3063.9,3063.8,0.001]
[1763315368677,1.2624992,3063.9,3063.8,0.001]
[1763315370290,0.9607,3063.9,3063.8,0.001]
[1763315370491,1.26306555,3063.9,3063.5,0.001]
[1763315370676,0.2302,3064.3,3063.5,0.001]
[1763315370677,0.3343,3063.6,3063.5,0.001]
[1763315370989,0.3343,3063.6,3061.6,0.4686]
[1763315371184,0.4708,3063.5,3061.7,0.405504]
[1763315371373,0.30236555,3063.4,3061.9,0.4686]
[1763315371888,0.4708,3063.3,3061.9,0.4686]
[1763315372186,0.4708,3063.3,3061.0,1.1347408]
[1763315372187,0.6701,3062.3,3061.3,0.4686]
[1763315372491,0.6701,3062.3,3061.5,0.405504]
[1763315372692,0.4708,3062.2,3061.0,0.001]
[1763315372853,0.4708,3062.2,3061.1,0.405504]
[1763315373189,0.4708,3062.2,3061.2,0.1425]
[1763315373553,0.4708,3062.2,3061.1,0.1425]
[1763315374450,0.1802,3062.6,3061.2,0.874104]
[1763315374681,0.48269221,3062.6,3061.2,0.874104]
[1763315374884,0.48269221,3062.6,3061.4,0.405504]
[1763315375095,0.75889221,3062.5,3061.4,0.405504]
[1763315375254,0.30249221,3062.4,3061.2,0.405504]
[1763315375448,0.75889221,3062.4,3061.2,0.405504]
[1763315375650,0.4564,3062.4,3061.2,0.405504]
[1763315375967,0.1802,3062.6,3061.2,0.405504]
[1763315375968,0.4564,3062.3,3061.2,0.405504]
[1763315376167,0.1802,3062.6,3061.2,0.405504]
[1763315376505,0.1802,3062.6,3061.4,0.405504]
[1763315376663,0.1802,3062.6,3061.6,0.405504]
[1763315376992,0.6366,3062.6,3061.6,0.405504]
[1763315377292,0.6366,3062.6,3061.2,0.405504]
[1763315377463,0.4564,3062.5,3061.2,0.405504]
[1763315377797,0.4564,3062.5,3061.4,0.405504]
[1763315378465,0.4564,3062.5,3061.2,0.405504]
[1763315378864,0.4564,3062.5,3061.2,0.880204]
[1763315379047,0.1802,3062.6,3061.2,0.880204]
[1763315379247,0.1802,3062.6,3061.3,0.4747]
[1763315379453,0.4564,3062.5,3061.3,0.4747]
[1763315379654,0.4564,3062.5,3061.4,0.405504]
[1763315380083,0.1802,3062.6,3061.6,0.405504]
[1763315381692,0.1802,3062.6,3061.7,0.4747]
[1763315384497,0.1802,3062.6,3061.1,0.1425]
[1763315384685,0.4564,3062.5,3061.1,0.1425]
[1763315385210,0.4564,3062.5,3061.2,0.405504]
[1763315385732,0.1944,3063.4,3062.4,0.6007]
[1763315385873,0.002,3063.5,3062.5,0.861704]
[1763315386069,0.4584,3063.5,3062.5,0.4562]
[1763315386810,0.4584,3063.5,3062.4,0.1445]
[1763315387819,0.4584,3063.5,3061.5,0.4747]
[1763315387820,0.654,3062.5,3061.5,0.4747]
[1763315388322,0.6508,3062.8,3061.6,0.405504]
[1763315388474,0.1944,3062.8,3061.6,0.405504]
[1763315388670,0.1944,3062.8,3061.7,0.405504]
[1763315389111,0.1944,3062.8,3061.3,0.405504]
[1763315389300,0.1944,3062.8,3061.8,0.405504]
[1763315389482,0.1944,3062.8,3061.8,0.4747]
[1763315390512,0.002,3063.5,3061.9,0.405504]
[1763315390513,0.4564,3063.3,3061.9,0.405504]
[1763315390695,0.3027797,3063.2,3061.9,0.405504]
[1763315390900,0.4564,3063.3,3062.1,0.405504]
[1763315391072,0.4564,3063.3,3062.2,0.1445]
[1763315391621,0.002,3063.5,3062.3,0.405504]
[1763315391972,0.4564,3063.4,3062.5,0.405504]
[1763315392178,0.002,3063.5,3062.5,0.405504]
[1763315392798,0.4584,3063.5,3062.5,0.405504]
[1763315394217,0.30438447,3063.4,3062.5,0.405504]
[1763315395321,0.30438447,3063.4,3062.5,0.880204]
[1763315396899,0.4564,3063.3,3062.5,0.405504]
[1763315397930,0.4564,3063.3,3062.4,0.21584448]
[1763315397931,0.654,3062.6,3062.4,0.21584448]
[1763315398197,0.3358,3062.5,3061.7,0.405504]
[1763315398502,0.1944,3062.6,3061.7,0.880204]
[1763315399937,0.1944,3062.9,3061.9,0.405504]
[1763315400102,0.4564,3063.1,3062.5,0.6007]
[1763315400313,0.4584,3063.5,3062.5,0.6007]
[1763315400555,0.30481406,3063.4,3062.6,0.405504]
[1763315400697,0.002,3063.5,3062.8,0.405504]
[1763315400900,0.002,3063.5,3063.4,0.983904]
[1763315401136,0.002,3063.5,3063.4,1.89543283]
[1763315401403,0.002,3063.5,3062.8,0.405504]
[1763315401404,0.918,3063.5,3062.8,0.405504]
[1763315401747,0.3358,3063.3,3062.8,0.405504]
[1763315402043,0.3358,3063.3,3062.7,0.405504]
[1763315402949,0.6528,3062.8,3062.7,0.405504]
[1763315403152,0.6528,3062.8,3062.7,0.80874466]
[1763315403722,0.002,3063.5,3062.7,0.405504]
[1763315403911,0.4564,3063.4,3062.7,0.405504]
[1763315404110,0.654,3062.8,3062.7,0.405504]
[1763315404633,0.4564,3063.3,3062.7,0.405504]
[1763315404818,0.4776,3062.8,3062.4,0.405504]
[1763315405019,0.4776,3062.8,3062.6,0.405504]
[1763315405216,0.4929,3063.2,3062.6,0.405504]
[1763315405437,0.002,3063.5,3062.6,0.405504]
[1763315405629,0.4949,3063.5,3062.6,0.405504]
[1763315408007,0.002,3063.5,3062.8,8.1313843]
[1763315408241,0.4929,3063.8,3063.5,0.0231]
[1763315410249,0.4776,3063.6,3063.5,0.0231]
[1763315410648,0.9705,3063.6,3062.2,1.7585653]
[1763315410811,0.2605,3063.1,3061.9,8.1323843]
[1763315411143,0.2605,3063.1,3062.0,1.94697923]
[1763315411342,0.4929,3063.0,3062.0,1.94697923]
[1763315411731,0.1928,3062.9,3062.0,0.81323843]
[1763315412111,0.6857,3062.9,3062.1,0.405504]
[1763315412633,0.4929,3062.8,3062.1,0.405504]
[1763315412839,0.4929,3062.8,3062.0,0.81323843]
[1763315413161,0.2605,3062.1,3061.9,0.001]
[1763315413451,0.4929,3062.8,3061.9,0.001]
[1763315413452,0.4755,3062.0,3061.9,0.001]
[1763315413810,0.9684,3062.0,3061.9,0.001]
[1763315414118,0.9684,3062.0,3061.1,0.001]
[1763315414119,0.4535,3061.6,3061.1,0.001]
[1763315414455,0.4749,3061.2,3061.1,0.001]
[1763315414836,0.9678,3061.2,3061.1,0.001]
[1763315417144,0.9678,3061.2,3061.0,0.001]
[1763315417359,0.7301,3061.1,3060.8,0.001]
[1763315417659,0.1902,3060.8,3060.5,0.001]
[1763315417858,0.4697,3060.6,3059.0,0.29859314]
[1763315418015,0.2795,3060.5,3059.0,0.29859314]
[1763315418218,0.2795,3060.5,3059.0,0.1676]
[1763315418417,0.7468,3060.5,3059.6,0.405504]
[1763315418663,0.7468,3060.5,3059.0,0.1676]
[1763315418857,0.7468,3060.5,3059.1,0.4975]
[1763315419154,0.7468,3060.5,3059.0,0.1676]
[1763315420137,0.7468,3060.5,3059.1,0.4975]
[1763315420353,0.7468,3060.5,3059.2,0.406504]
[1763315420867,0.1902,3060.8,3060.2,0.1272]
[1763315421071,0.4673,3060.7,3059.8,0.405504]
[1763315421570,0.4697,3060.5,3059.8,0.405504]
[1763315421928,0.937,3060.5,3059.6,0.405504]
[1763315422523,0.937,3060.5,3060.0,0.001]
[1763315424753,0.1902,3060.8,3060.1,0.1272]
[1763315425072,0.4673,3060.7,3060.1,0.1272]
[1763315425278,0.4697,3060.5,3060.0,0.001]
[1763315425429,0.937,3060.5,3060.0,0.001]
[1763315427781,0.4697,3060.5,3060.0,0.001]
[1763315428073,0.1902,3061.0,3060.2,0.405504]
[1763315428862,0.4673,3060.9,3060.2,0.405504]
[1763315429726,0.1902,3061.0,3060.2,0.405504]
[1763315430007,0.02931,3061.0,3060.2,0.405504]
[1763315430273,0.02931,3061.0,3060.2,0.903004]
[1763315431473,0.1928,3061.6,3060.9,0.4503]
[1763315431771,0.05,3062.4,3060.1,0.1272]
[1763315431772,0.6575,3062.1,3061.1,0.4503]
[1763315431959,0.4673,3061.6,3060.2,0.4975]
[1763315432136,0.4673,3061.6,3060.3,0.405504]
[1763315432965,0.4673,3061.6,3060.1,0.1272]
[1763315432966,0.1902,3062.1,3060.6,0.405504]
[1763315433364,0.6575,3062.1,3060.8,0.405504]
[1763315433793,0.6575,3062.1,3061.0,0.405504]
[1763315433972,0.1902,3062.1,3061.0,0.405504]
[1763315434269,0.4673,3062.0,3060.6,0.405504]
[1763315434632,0.4673,3062.0,3060.7,0.405504]
[1763315436077,0.4673,3062.0,3060.2,0.4501]
[1763315436663,0.30207007,3061.9,3060.2,0.4501]
[1763315436867,0.30207007,3061.9,3060.3,0.405504]
[1763315437063,0.4742,3061.8,3060.3,0.405504]
[1763315437613,0.4742,3061.8,3060.6,0.405504]
[1763315437791,0.4742,3061.8,3060.2,0.855604]
[1763315437971,0.4742,3061.8,3060.5,0.405504]
[1763315439209,0.30273626,3061.7,3060.5,0.405504]
[1763315439579,0.4742,3061.6,3060.5,0.405504]
[1763315439792,0.4742,3061.6,3060.5,0.406504]
[1763315439992,0.4742,3061.6,3060.6,0.405504]
[1763315440798,0.4742,3061.6,3060.5,0.001]
[1763315441209,0.30377091,3061.5,3060.5,0.001]
[1763315441709,0.4742,3061.4,3060.5,0.001]
[1763315443090,0.3039288,3061.3,3060.5,0.001]
[1763315443290,0.3039288,3061.2,3060.5,0.001]
[1763315443488,0.5856,3060.6,3060.5,0.001]
[1763315444006,1.0598,3060.6,3060.5,0.001]
[1763315444211,0.1912,3060.7,3060.5,0.001]
[1763315444511,0.1912,3060.9,3060.5,0.001]
[1763315445070,0.6654,3060.9,3060.5,0.001]
[1763315445481,0.4742,3060.8,3060.5,0.001]
[1763315446101,0.46,3060.6,3060.5,0.001]
[1763315446495,0.9342,3060.6,3060.5,0.001]
[1763315446815,0.1912,3060.9,3060.5,0.001]
[1763315447126,0.9342,3060.6,3060.5,0.001]
[1763315447813,0.1912,3060.9,3060.5,0.001]
[1763315448116,0.4742,3061.1,3060.5,0.001]
[1763315448294,0.1912,3061.2,3060.5,0.001]
[1763315448503,0.7785062,3061.1,3060.5,0.001]
[1763315448843,0.4742,3061.1,3060.5,0.001]
[1763315453236,0.3046724,3061.0,3060.5,0.001]
[1763315453422,0.4742,3061.1,3060.5,0.001]
[1763315453745,0.77885284,3061.0,3060.5,0.001]
[1763315453932,0.4742,3061.0,3060.5,0.001]
[1763315454247,0.77896781,3060.9,3060.5,0.001]
[1763315454445,0.1912,3061.2,3060.5,0.001]
[1763315454610,0.30475896,3061.1,3060.5,0.001]
[1763315454809,0.30475896,3061.0,3060.5,0.001]
[1763315455041,0.6654,3061.2,3060.5,0.001]
[1763315455042,0.30475896,3060.9,3060.5,0.001]
[1763315455245,0.30475677,3060.8,3060.5,0.001]
[1763315455429,0.4742,3061.1,3060.5,0.001]
[1763315455759,0.30475815,3061.0,3060.5,0.001]
[1763315456050,0.30475815,3060.9,3060.5,0.001]
[1763315456253,0.46,3060.6,3060.5,0.001]
[1763315456551,0.76475815,3060.6,3060.5,0.001]
[1763315456710,1.23895815,3060.6,3060.5,0.001]
[1763315457323,0.76475815,3060.6,3060.5,0.001]
[1763315457850,1.23895815,3060.6,3060.5,0.001]
[1763315460356,1.94155836,3060.6,3060.5,0.001]
[1763315461140,1.46735836,3060.6,3060.5,0.001]
[1763315461347,1.23895815,3060.6,3060.5,0.001]
[1763315461968,3.94979627,3060.6,3060.5,0.001]
[1763315462372,3.07508935,3060.6,3060.5,0.001]
[1763315462984,3.94979627,3060.6,3060.5,0.001]
[1763315463182,3.07508935,3060.6,3060.5,0.001]
[1763315468234,3.07508935,3060.6,3060.2,0.001]
[1763315468235,1.2583408,3060.5,3060.2,0.001]
[1763315468380,1.5798408,3060.3,3060.2,0.001]
[1763315468579,3.46308021,3060.3,3060.2,0.001]
[1763315468777,3.94798021,3060.3,3060.2,0.001]
[1763315468981,3.07188935,3060.3,3060.2,0.001]
[1763315469195,3.07188935,3060.3,3058.5,0.001]
[1763315469196,0.5155,3059.8,3058.5,0.001]
[1763315469430,0.5155,3059.8,3056.0,0.1897]
[1763315469431,0.2435,3057.5,3056.7,1.7585653]
[1763315469727,0.4662,3056.8,3055.3,0.6467]
[1763315469938,0.98237556,3056.7,3055.3,0.6467]
[1763315470075,0.78826507,3056.6,3055.3,0.1897]
[1763315470279,0.98237556,3056.6,3055.3,0.1897]
[1763315470479,0.4849,3056.5,3055.0,0.1897]
[1763315470674,0.4849,3056.5,3055.3,0.457]
[1763315472334,0.4849,3056.8,3055.3,0.457]
[1763315472748,1.1337408,3057.4,3055.4,0.405504]
[1763315472897,0.4849,3057.2,3055.4,0.405504]
[1763315473233,0.4849,3057.5,3055.6,0.405504]
[1763315473606,8.99858526,3057.5,3055.6,0.457]
[1763315473936,1.1837408,3057.4,3055.0,0.1897]
[1763315474152,0.05,3056.7,3055.0,0.1897]
[1763315474309,0.6548,3055.1,3053.0,1.17393097]
[1763315474715,0.6548,3055.1,3054.1,0.457]
[1763315475747,0.4858,3055.0,3053.7,0.6517]
[1763315476222,0.4858,3055.0,3053.7,0.1897]
[1763315476645,0.4858,3055.0,3053.8,0.462]
[1763315477146,0.1886,3055.1,3053.8,0.462]
[1763315477335,0.1841,3055.2,3054.0,0.001]
[1763315477713,0.4858,3055.1,3054.0,0.001]
[1763315478650,0.4858,3055.1,3054.1,0.1553]
[1763315479239,0.4858,3055.1,3054.0,0.001]
[1763315479440,0.4858,3055.1,3054.1,0.1553]
[1763315481765,0.1841,3055.2,3054.1,0.6173]
[1763315482071,0.1841,3055.2,3054.2,0.462]
[1763315484397,0.4858,3055.4,3054.2,0.462]
[1763315485053,4.3693027,3056.2,3054.3,0.405504]
[1763315485054,0.5137987,3056.2,3054.3,0.405504]
[1763315485298,0.4858,3056.2,3054.3,0.405504]
[1763315485452,0.4858,3056.2,3054.5,0.405504]
[1763315485866,0.4858,3055.9,3054.7,0.405504]
[1763315486057,0.4858,3055.9,3054.6,0.462]
[1763315487097,0.4858,3056.3,3054.6,0.462]
[1763315487302,0.4858,3056.3,3054.7,0.405504]
[1763315487763,6.4,3056.8,3054.9,0.405504]
[1763315487959,0.4858,3056.7,3054.9,0.405504]
[1763315488264,0.4858,3056.7,3055.1,0.405504]
[1763315488708,0.4858,3056.7,3055.3,0.405504]
[1763315488860,0.1695,3057.1,3055.3,0.405504]
[1763315489214,0.6553,3057.1,3055.5,0.405504]
[1763315489712,0.4858,3057.0,3055.5,0.462]
[1763315490081,0.4858,3057.0,3055.6,0.405504]
[1763315490407,0.1695,3057.1,3055.8,0.405504]
[1763315490758,0.1695,3057.1,3056.0,0.405504]
[1763315490964,0.1695,3057.1,3056.1,0.6497]
[1763315491205,0.1886,3057.6,3056.2,0.405504]
[1763315491404,0.1886,3057.6,3056.2,0.867504]
[1763315491557,0.6744,3057.6,3056.2,0.867504]
[1763315491903,0.4858,3057.6,3056.3,0.462]
[1763315492090,1.1837408,3058.3,3056.3,0.462]
[1763315492091,0.4858,3057.5,3056.3,0.462]
[1763315494198,0.1841,3058.0,3056.4,0.405504]
[1763315494516,0.1841,3058.0,3056.5,0.4631]
[1763315494676,0.6475,3058.0,3056.6,0.405504]
[1763315494870,0.69137036,3058.8,3056.6,0.405504]
[1763315495066,0.69137036,3058.8,3056.5,0.4631]
[1763315495067,0.1841,3059.0,3056.8,0.405504]
[1763315495310,0.1841,3059.0,3057.0,1.5392448]
[1763315495568,0.1841,3059.3,3057.2,0.405504]
[1763315496113,0.002,3058.0,3057.4,0.405504]
[1763315496564,0.002,3058.0,3057.9,0.898604]
[1763315497083,0.002,3058.0,3057.9,1.361704]
[1763315498521,0.002,3058.4,3057.9,1.361704]
[1763315498810,0.002,3058.4,3058.3,1.053904]
[1763315499170,0.002,3058.7,3058.4,0.405504]
[1763315499368,0.002,3058.7,3058.6,0.898604]
[1763315499609,0.4634,3060.4,3058.7,0.405504]
[1763315499802,0.4634,3060.4,3058.7,0.868604]
[1763315500286,0.4634,3060.4,3058.8,0.4631]
[1763315501930,0.4634,3060.4,3058.6,0.405504]
[1763315501931,1.1337408,3060.3,3058.3,0.1553]
[1763315502074,0.1604,3058.9,3058.3,0.1553]
[1763315502910,0.1986,3059.4,3058.5,0.405504]
[1763315503234,0.1986,3059.6,3058.9,0.4931]
[1763315503707,0.662,3059.6,3058.5,0.4631]
[1763315503911,0.662,3059.6,3058.3,0.1553]
[1763315504109,0.4634,3059.5,3058.3,0.1553]
[1763315504322,0.1986,3059.6,3058.3,0.6184]
[1763315504730,6.4,3059.5,3058.4,0.4631]
[1763315504895,1.1337408,3059.4,3058.4,0.4631]
[1763315505092,1.1337408,3059.4,3058.3,0.1553]
[1763315505320,0.4634,3059.3,3058.3,0.1553]
[1763315506124,1.1337408,3059.4,3058.4,0.4631]
[1763315506995,0.4634,3059.3,3058.0,0.1553]
[1763315507196,0.1986,3058.5,3058.0,0.1553]
[1763315507446,0.4634,3059.3,3057.8,0.1553]
[1763315507618,1.1337408,3059.4,3058.4,0.4931]
[1763315508025,1.1337408,3059.4,3058.4,0.9562]
[1763315508528,1.1337408,3059.4,3058.5,0.4631]
[1763315508837,6.4,3059.5,3058.5,0.4631]
[1763315509146,1.1337408,3059.4,3058.0,0.405504]
[1763315509327,1.5971408,3059.4,3058.0,0.405504]
[1763315509501,0.4634,3059.3,3058.0,0.405504]
[1763315509705,0.4634,3059.3,3058.1,0.4631]
[1763315509920,0.4634,3059.3,3057.9,0.405504]
[1763315510122,1.1337408,3059.4,3057.9,0.405504]
[1763315510328,1.1337408,3059.4,3058.0,0.4631]
[1763315512985,0.4634,3059.3,3058.0,0.4631]
[1763315513304,0.4634,3059.3,3058.1,0.405504]
[1763315513714,1.1337408,3059.4,3058.3,0.405504]
[1763315513946,1.5971408,3059.4,3058.3,0.405504]
[1763315514264,1.5971408,3059.4,3057.8,0.1553]
[1763315514265,0.4634,3059.3,3057.9,0.4631]
[1763315515354,7.5357408,3059.4,3058.0,0.405504]
[1763315515521,7.9991408,3059.4,3058.0,0.405504]
[1763315515722,7.9991408,3059.4,3058.1,0.4631]
[1763315515915,7.9991408,3059.4,3058.2,0.405504]
[1763315516130,0.4634,3059.3,3058.2,0.405504]
[1763315516336,0.4634,3059.3,3058.3,0.405504]
[1763315516718,0.4634,3059.3,3058.4,0.405504]
[1763315517044,7.5357408,3059.4,3058.4,0.405504]
[1763315517213,7.5357408,3059.4,3058.4,0.4631]
[1763315517819,7.9991408,3059.4,3058.4,0.4631]
[1763315518417,6.8654,3059.4,3058.4,0.4631]
[1763315518835,1.1337408,3059.3,3058.4,0.4631]
[1763315519415,1.1337408,3059.3,3057.9,0.405504]
[1763315519615,1.1337408,3059.3,3057.9,0.868604]
[1763315519960,1.1337408,3059.3,3058.0,0.4631]
[1763315520950,0.4634,3059.2,3058.1,0.405504]
[1763315521153,1.1337408,3059.3,3058.1,0.405504]
[1763315521373,1.1337408,3059.3,3058.0,0.4631]
[1763315521374,1.1337408,3059.3,3059.2,0.6808]
[1763315521550,0.002,3059.4,3059.2,0.6808]
[1763315521713,0.002,3059.4,3059.3,0.9562]
[1763315521918,0.002,3059.4,3059.3,1.361704]
[1763315522643,0.002,3059.4,3059.3,0.4931]
[1763315523067,0.002,3059.4,3059.3,0.9562]
[1763315523555,0.002,3059.4,3059.2,0.1877]
[1763315523720,0.4972,3059.3,3058.8,0.1877]
[1763315524069,0.4972,3059.3,3058.6,0.1877]
[1763315524280,0.2685,3058.9,3057.8,0.6184]
[1763315524522,0.2685,3058.9,3057.8,0.1553]
[1763315524523,0.4929,3058.5,3057.8,0.1553]
[1763315524795,1.00482341,3058.8,3057.8,0.1553]
[1763315524796,0.30413709,3058.4,3057.8,0.1553]
[1763315524995,0.70168263,3058.7,3057.8,0.1553]
[1763315525288,1.00624741,3058.6,3057.8,0.1553]
[1763315525440,1.00624741,3058.5,3057.8,0.1553]
[1763315525643,0.30456478,3058.4,3057.8,0.1553]
[1763315525942,0.70153762,3058.7,3057.8,0.1553]
[1763315526146,1.0060645,3058.6,3057.8,0.1553]
[1763315526406,1.0060645,3058.5,3057.9,0.405504]
[1763315526582,0.86677771,3059.6,3058.8,0.6661]
[1763315526895,0.30458656,3059.3,3058.9,0.483]
[1763315527096,1.33537771,3059.8,3058.9,0.483]
[1763315527259,0.70174842,3059.7,3059.3,0.483]
[1763315527596,0.002,3059.8,3059.3,0.888504]
[1763315527758,0.30466133,3059.7,3059.3,0.888504]
[1763315528125,0.002,3059.8,3059.3,0.888504]
[1763315528296,0.30461443,3059.7,3059.3,0.888504]
[1763315528595,0.002,3059.8,3058.9,0.405504]
[1763315528749,0.30455685,3059.7,3058.9,0.405504]
[1763315528948,0.002,3059.8,3059.0,0.4968]
[1763315529183,0.30445536,3059.7,3059.0,0.4968]
[1763315529423,0.002,3059.8,3059.0,0.4968]
[1763315529687,0.002,3059.8,3059.3,0.483]
[1763315529688,0.30436715,3059.7,3059.3,0.483]
[1763315529893,0.002,3059.8,3059.3,0.888504]
[1763315530049,0.002,3059.8,3059.3,1.385304]
[1763315530698,0.002,3059.8,3058.8,0.1831]
[1763315530990,0.002,3059.8,3058.9,0.405504]
[1763315531398,0.002,3059.8,3058.9,0.852304]
[1763315531696,0.002,3059.8,3059.3,0.483]
[1763315532343,0.002,3059.8,3059.3,0.9798]
[1763315532547,0.002,3059.8,3058.8,0.6799]
[1763315532946,0.30422659,3059.7,3058.8,0.6799]
[1763315533148,0.4666,3059.6,3058.8,0.1831]
[1763315533953,1.16749709,3059.6,3058.8,0.1831]
[1763315534266,0.4666,3059.6,3058.8,0.1831]
[1763315534463,0.30419442,3059.3,3058.5,0.1831]
[1763315534663,0.4686,3059.4,3058.5,0.1831]
[1763315534874,0.30419478,3059.3,3058.5,0.1831]
[1763315535080,0.4686,3059.4,3058.2,0.1831]
[1763315535081,1.00505354,3059.2,3058.2,0.1831]